[Event "American Cup Open Champions 2025"]
[Site "Saint Louis"]
[Date "2025.03.16"]
[Round "1.4"]
[White "Mishra, Abhimanyu"]
[Black "Nakamura, Hikaru"]
[Result "0-1"]
[Annotator "TA"]
[ECO "B06"]
[WhiteElo "2600"]
[BlackElo "2802"]
[PlyCount "96"]
[EventDate "2025.03.02"]
[EventType "k.o."]
[EventCountry "USA"]
[SourceTitle "playchess.com"]
[Source "ChessBase"]
[SourceQuality "1"]
[TimeControl "180+2"]

{[%evp 9,96,44,51,49,72,60,70,64,72,52,49,-3,83,37,77,78,75,64,82,95,81,87,70,85,133,117,112,108,136,127,192,185,158,166,186,91,97,85,81,64,77,74,139,80,122,47,163,167,148,138,138,141,146,139,129,130,124,64,214,152,278,277,312,311,324,315,308,290,291,254,385,372,430,162,163,156,197,211,199,109,106,109,111,95,85,101,88,-2087,-1709]} 1. e4 {[%emt 0:00:01]} g6 {[%emt 0:00:00]} 2. d4 {[%emt 0:00:00]} Bg7 {[%emt 0:00:03]} 3. Nc3 {[%emt 0:00:01]} a6 {[%emt 0:00:01]} 4. Be3 {[%emt 0:00:03]} d6 {[%emt 0:00:01]} 5. Qd2 {[%emt 0:00:01]} Nd7 {[%emt 0:00:00]} 6. h4 {[%emt 0:00:09] B06: Modern Defence.} h6 {[%emt 0:00:02]} 7. O-O-O {[%emt 0:00:18]} b5 {[%emt 0:00:01]} 8. f3 {[%emt 0:00:17] White is slightly better.} Ngf6 {[%emt 0:00:05]} 9. g4 {[%emt 0:00:25]} Nb6 {[%emt 0:00:01]} 10. d5 {[%emt 0:00:12]} (10. a3 $14) 10... Bb7 {[%emt 0:00:04]} (10... b4 $11) 11. Nh3 {[%emt 0:00:09]} (11. Bd4 $16) 11... c5 {[%emt 0:00:10]} 12. dxc6 $1 {[%emt 0:00:02]} Bxc6 {[%emt 0:00:01]} 13. Bd4 {[%emt 0:00:08]} Qc7 {[%emt 0:00:45]} 14. g5 {[%emt 0:00:19]} hxg5 {[%emt 0:00:01]} 15. hxg5 {[%emt 0:00:02]} Nh5 {[%emt 0:00:02]} 16. Nf4 $146 {[%emt 0:00:05][%mdl 2048] Black is under strong pressure.} (16. Bxg7 Nxg7 17. Be2 O-O-O 18. Nf4 Rxh1 19. Rxh1 e5 20. Nfd5 Bxd5 21. Nxd5 Nxd5 22. Qxd5 {0-1 Liu,T (2225)-Rushbrooke,R (2074) London Classic op 14th 2024 (2)}) 16... Bxd4 {[%emt 0:00:31]} (16... Nxf4 $142 17. Rxh8+ Bxh8 18. Bxh8 d5) 17. Qxd4 $16 {[%emt 0:00:02]} O-O-O {[%emt 0:00:01][%cal Be8c8,Bc8b8,Bb8a7][%mdl 32]} 18. Nxh5 {[%emt 0:00:32]} gxh5 {[%emt 0:00:01]} 19. a4 $1 {[%emt 0:00:00]} bxa4 {[%emt 0:00:18][%csl Oa4,Oa6,Oh5] Black has weak pawns} (19... Nxa4 $16 20. Nxa4 bxa4) 20. Bxa6+ $18 {[%emt 0:00:02]} Kb8 21. Qb4 {[%emt 0:00:13]} Ka7 {[%emt 0:00:20]} 22. Qa5 {[%emt 0:00:22] White attacks} (22. Be2 $18 {and White stays clearly on top.}) 22... Na8 $16 {[%emt 0:00:02]} 23. Qxc7+ {[%emt 0:00:04]} (23. Nb5+ $6 Bxb5 24. Qxb5 Qb6 $14) 23... Nxc7 {[%emt 0:00:01]} 24. Bc4 {[%emt 0:00:02]} e6 25. Rh4 {[%emt 0:00:04]} Ne8 {[%emt 0:00:22]} (25... d5 $142) 26. Ne2 {[%emt 0:00:05]} (26. f4 $142) 26... Ng7 {[%emt 0:00:20]} 27. Ng3 {[%emt 0:00:02]} (27. Rf4 $16 Rd7 28. Nd4) 27... Rc8 {[%emt 0:00:10]} (27... Kb6 $14) 28. Rxd6 $18 {[%emt 0:00:03]} Kb6 {[%emt 0:00:08] Black is weak on the dark squares} 29. Bd5 {[%emt 0:00:02]} Kc5 {[%emt 0:00:12]} (29... exd5 30. exd5 Rhd8 31. Rxc6+ Rxc6 32. dxc6) 30. Rxc6+ {[%emt 0:00:02]} Rxc6 {[%emt 0:00:01]} 31. Bxc6 {[%emt 0:00:01]} Kxc6 $16 {[%emt 0:00:00][%mdl 4096] Endgame KRN-KRN. White is a pawn up.} 32. f4 {[%emt 0:00:01]} Rd8 {[%emt 0:00:04]} 33. f5 {[%emt 0:00:03]} (33. Nxh5 $2 Rh8 34. f5 (34. g6 $2 fxg6 35. Nxg7 Rxh4 $19) 34... Rxh5 $19 (34... Nxh5 35. g6 $16)) (33. Rh3 $16) 33... e5 ({Black should play} 33... exf5 $1 $14 34. exf5 Ra8) 34. c3 {[%emt 0:00:07]} (34. Nxh5 Rh8 $11) 34... Kc5 {[%emt 0:00:02]} (34... Kb5 $16 35. Kc2 (35. Nxh5 Rh8 $11) 35... Rh8) 35. Kc2 $18 {[%emt 0:00:02]} (35. Nxh5 Rh8 36. Kd2 (36. g6 fxg6 37. Nf4 Rxh4 $19) 36... Rh7 $17 (36... Nxh5 37. Kc2 $14) (36... Rxh5 37. f6 $11)) 35... Rg8 {[%emt 0:00:03]} 36. Nf1 {[%emt 0:00:05]} (36. Nxh5 Rh8 $11) 36... Rh8 {[%emt 0:00:00]} 37. Nd2 {[%emt 0:00:02]} Ne8 {[%emt 0:00:01]} 38. Nf3 {[%emt 0:00:02]} Kd6 39. Rh1 {[%emt 0:00:01]} f6 {[%emt 0:00:03]} (39... Kc7 {keeps fighting.} 40. g6 (40. Nxe5 Nd6 $18) 40... fxg6 41. fxg6 Nf6) 40. g6 {[%emt 0:00:01]} Ke7 {[%emt 0:00:01]} 41. Nh4 $2 {[%emt 0:00:02]} (41. Ra1) 41... Nd6 {[%emt 0:00:01]} 42. Re1 {[%emt 0:00:05]} Rb8 {[%emt 0:00:01]} 43. Nf3 {[%emt 0:00:04]} Nc4 {[%emt 0:00:01] [#]} 44. Rb1 {[%emt 0:00:02]} ({White should play} 44. Rh1 $1 $18 {[%cal Rh1h5]}) 44... a3 $16 {[%emt 0:00:00]} 45. b3 {[%emt 0:00:03]} Ne3+ {[%emt 0:00:03]} 46. Kd3 {[%emt 0:00:00]} Ng4 {[%emt 0:00:01] [#]} 47. Nd2 $1 {[%emt 0:00:02] and Ra1 should not be overlooked} h4 {[%emt 0:00:02]} 48. Rh1 $2 {[%emt 0:00:03][%mdl 8192]} (48. Ra1 $16) 48... Nf2+ {[%emt 0:00:00] Black used his chance.   Weighted Error Value: White=0.33/Black=0.31  Loses game:     	White=1     	---        Mistake:       	White=8     	Black=8      Inaccurate:     	---       	Black=2      OK:         	White=16    	Black=15     Best:        	White=4     	Black=4      Strong:       	White=3     	---} 0-1

[Event "American Cup Open Champions 2025"]
[Site "Saint Louis"]
[Date "2025.03.16"]
[Round "1.5"]
[White "Dominguez Perez, Leinier"]
[Black "So, Wesley"]
[Result "1/2-1/2"]
[Annotator "TA"]
[ECO "C54"]
[WhiteElo "2741"]
[BlackElo "2748"]
[PlyCount "60"]
[EventDate "2025.03.02"]
[EventType "k.o."]
[EventCountry "USA"]
[SourceTitle "playchess.com"]
[Source "ChessBase"]
[SourceQuality "1"]
[TimeControl "180+2"]

{[%evp 12,60,21,12,25,21,26,11,18,17,31,12,16,12,14,12,26,6,13,14,0,0,0,0,2,0,32,0,28,0,21,0,19,18,18,21,26,0,0,0,18,17,19,16,29,0,21,0,19,0,27]} 1. e4 {[%emt 0:00:01]} e5 {[%emt 0:00:01]} 2. Nf3 {[%emt 0:00:01]} Nc6 {[%emt 0:00:00]} 3. Bc4 {[%emt 0:00:02]} Nf6 {[%emt 0:00:02]} 4. d3 {[%emt 0:00:01]} Bc5 {[%emt 0:00:01]} 5. c3 {[%emt 0:00:01]} d6 {[%emt 0:00:01]} 6. O-O {[%emt 0:00:02]} O-O {[%emt 0:00:03]} 7. Re1 {[%emt 0:00:01]} a6 {[%emt 0:00:01] 7...Bb6 is setting a new trend. C54: Giuoco Piano: 4 c3 Nf6, main lines with 5 d4 and 5 d3.} 8. a4 {[%emt 0:00:04]} Ba7 (8... h6 9. h3 Re8 10. Nbd2 Be6 11. Bxe6 Rxe6 12. b4 Ba7 13. Qc2 Qd7 14. Rb1 b5 15. Ra1 Ree8 16. Nf1 d5 17. Bd2 Rad8 18. Ng3 Qe6 19. Nf5 {½-½ Dominguez Perez,L (2758)-So,W (2772) Saint Louis Rapid 2021 (4)}) 9. h3 {[%emt 0:00:00]} Be6 {[%emt 0:00:04]} 10. Bxe6 {[%emt 0:00:02]} fxe6 {[%emt 0:00:01]} 11. b4 {[%emt 0:00:03]} Nh5 {[%emt 0:00:10]} 12. Be3 {[%emt 0:00:07]} Nf4 {[%emt 0:00:07]} 13. Rf1 $146 {[%emt 0:00:01]} (13. b5 Ne7 14. Kh2 Neg6 15. bxa6 bxa6 16. d4 Nh4 17. Nxh4 Qxh4 18. Nd2 Nd3 19. Qb3 Nxe1 20. Qxe6+ {0-1 Sethuraman,S (2634)-Jumabayev,R (2641) Saint Louis Winter-A 2019 (2)}) 13... Qe8 {[%emt 0:00:10]} 14. Kh2 {[%emt 0:00:04]} Qg6 {[%emt 0:00:09][%csl Gf4][%cal Rg6g2] [#]} 15. g3 {[%emt 0:00:14][%cal Bg2g3,Bg3g4][%mdl 32] Threatens to win with Bxa7.} Bxe3 {[%emt 0:00:39] A sharp opening} 16. fxe3 {[%emt 0:00:06]} Nh5 {[%emt 0:00:02]} 17. g4 {[%emt 0:00:04] Successful Defense White} Nf6 {[%emt 0:00:01]} 18. Nbd2 {[%emt 0:00:27][%cal Bb1d2,Bd2f3,Bf3h4][%mdl 32]} h6 {[%emt 0:00:16]} 19. Qe2 {[%emt 0:00:15]} Nd8 {[%emt 0:00:21]} 20. Rf2 {[%emt 0:00:16]} Nf7 {[%emt 0:00:02]} 21. Raf1 {[%emt 0:00:06]} Ng5 {[%emt 0:00:04]} 22. Nxg5 {[%emt 0:00:09]} Qxg5 {[%emt 0:00:01]} 23. Nf3 {[%emt 0:00:06]} Qg6 {[%emt 0:00:01]} 24. Nh4 {[%emt 0:00:22]} Qg5 {[%emt 0:00:02]} 25. Nf3 {[%emt 0:00:09]} Qg6 {[%emt 0:00:01]} 26. a5 {[%emt 0:00:03]} Nh7 {[%emt 0:00:16]} 27. Nh4 {[%emt 0:00:11]} Qg5 {[%emt 0:00:10]} 28. Nf3 {[%emt 0:00:05]} Qg6 {[%emt 0:00:02] The position is equal.} 29. Nh4 {[%emt 0:00:07]} Qg5 {[%emt 0:00:01]} 30. Nf3 {[%emt 0:00:08]} Qg6 {[%emt 0:00:05] An uneventful encounter.   Weighted Error Value: White=0.11 (very precise) /Black=0.08 (flawless)   Inaccurate:     	White=2     	Black=2      OK:         	White=6     	Black=13} 1/2-1/2

[Event "American Cup Open Champions 2025"]
[Site "Saint Louis"]
[Date "2025.03.16"]
[Round "1.5"]
[White "Sevian, Samuel"]
[Black "Aronian, Levon"]
[Result "0-1"]
[Annotator "TA"]
[ECO "C55"]
[WhiteElo "2692"]
[BlackElo "2748"]
[PlyCount "72"]
[EventDate "2025.03.02"]
[EventType "k.o."]
[EventCountry "USA"]
[SourceTitle "playchess.com"]
[Source "ChessBase"]
[SourceQuality "1"]
[TimeControl "180+2"]

{[%evp 15,72,31,39,15,25,25,23,19,19,19,18,20,25,28,18,21,59,23,14,8,8,-4,45,56,44,25,33,12,44,37,42,36,52,-87,-91,-72,-82,-85,-85,-93,-93,-106,-101,-205,-211,-233,-237,-568,-607,-602,-607,-545,-575,-604,-618,-616,-589,-947,-946]} 1. e4 {[%emt 0:00:01]} e5 {[%emt 0:00:01]} 2. Nf3 {[%emt 0:00:01]} Nc6 {[%emt 0:00:01]} 3. Bc4 {[%emt 0:00:01]} Nf6 {[%emt 0:00:01]} 4. d3 {[%emt 0:00:01]} Be7 {[%emt 0:00:02]} 5. O-O {[%emt 0:00:03]} O-O {[%emt 0:00:01]} 6. Re1 {[%emt 0:00:01]} d6 {[%emt 0:00:01]} 7. a4 {[%emt 0:00:01]} Be6 {[%emt 0:00:01]} 8. Nbd2 {[%emt 0:00:01]} Qd7 {[%emt 0:00:01]} 9. Bb5 {[%emt 0:00:02][%cal Od3d4] C55: Two Knights: 4 d3, 4 d4 exd4 5 e5 and Max Lange Attack.} a6 {[%emt 0:00:17]} 10. Bxc6 {[%emt 0:00:01]} bxc6 {[%emt 0:00:01]} 11. d4 {[%emt 0:00:01] White has an edge.} exd4 {[%emt 0:00:02]} 12. Nxd4 {[%emt 0:00:01][%cal Bf3d4,Bd4e2,Be2f4][%mdl 32]} Bg4 {[%emt 0:00:00]} 13. f3 {[%emt 0:00:02]} c5 $146 {[%emt 0:00:14]} (13... Bh5 14. Nf5 Rfe8 15. Nxe7+ Qxe7 16. Ra3 d5 17. Rae3 Bg6 18. exd5 Qd6 19. Rxe8+ Rxe8 20. Rxe8+ Nxe8 {½-½ Goncharov,I (2393)-Schwetlick,T (2425) EU-ch75 email 2022}) 14. Ne2 {[%emt 0:00:01]} Be6 {[%emt 0:00:01]} 15. Nf4 {[%emt 0:00:02] Prevents Nh5} Rfd8 {[%emt 0:00:30]} 16. Nf1 {[%emt 0:00:09]} d5 {[%emt 0:00:01]} 17. exd5 {[%emt 0:00:07]} Bxd5 {[%emt 0:00:01][%cal Oe7d6]} 18. Ng3 {[%emt 0:00:24]} Bc6 {[%emt 0:00:11]} (18... c4 $11) 19. Qxd7 $14 {[%emt 0:00:11]} Rxd7 {[%emt 0:00:01]} 20. Nd3 {[%emt 0:00:01] [#]} Bd6 {[%emt 0:00:13]} 21. Bg5 {[%emt 0:00:07]} c4 {[%emt 0:00:28]} 22. Ne5 {[%emt 0:00:03]} Bxe5 {[%emt 0:00:01]} (22... Bc5+ 23. Be3 Bxe3+ 24. Rxe3 $16) 23. Rxe5 {[%emt 0:00:02]} Nd5 {[%emt 0:00:01][%cal Bf6d5,Bd5b4,Bb4c2][%mdl 32]} 24. Nf5 {[%emt 0:00:30]} (24. Re4 $1 $14 {keeps the upper hand.}) 24... f6 $17 {[%emt 0:00:17]} 25. Re6 {[%emt 0:00:01]} Nb4 $36 {[%emt 0:00:00][%mdl 2048] Black is on the roll.} 26. Bf4 {[%emt 0:00:16] Ne7+ is the strong threat.} Nxc2 {[%emt 0:00:04]} 27. Rc1 {[%emt 0:00:38]} Bxa4 {[%emt 0:00:01]} 28. Re4 {[%emt 0:00:01]} Bb3 {[%emt 0:00:09]} 29. h4 {[%emt 0:00:30]} (29. Ne3 $17 Nb4 30. Nxc4) 29... Nb4 $19 {[%emt 0:00:11]} 30. Rce1 {[%emt 0:00:23]} Nd3 {[%emt 0:00:04][%csl LRb2,LRe1]} 31. Re7 $2 {[%emt 0:00:01]} (31. Ra1 {is more resistant.}) 31... Rxe7 {[%emt 0:00:06] Black is clearly winning.} 32. Rxe7 {[%emt 0:00:07]} Nxf4 {[%emt 0:00:01]} 33. Rxg7+ {[%emt 0:00:01]} Kh8 {[%emt 0:00:01]} 34. Rxc7 {[%emt 0:00:08] [#]} c3 $1 {[%emt 0:00:03]} 35. bxc3 {[%emt 0:00:04]} a5 {...a4 would now be deadly.} 36. Nd4 {[%emt 0:00:03]} Ne6 {[%emt 0:00:09] Weighted Error Value: White=0.48/Black=0.06 (flawless)   Mistake:       	White=3     	Black=1      Inaccurate:     	White=1     	Black=2      OK:         	White=6     	Black=12     Best:        	White=1     	Black=5} 0-1

[Event "American Cup Open Champions 2025"]
[Site "Saint Louis"]
[Date "2025.03.16"]
[Round "1.5"]
[White "Mishra, Abhimanyu"]
[Black "Nakamura, Hikaru"]
[Result "1/2-1/2"]
[Annotator "TA"]
[ECO "C54"]
[WhiteElo "2600"]
[BlackElo "2802"]
[PlyCount "63"]
[EventDate "2025.03.02"]
[EventType "k.o."]
[EventCountry "USA"]
[SourceTitle "playchess.com"]
[Source "ChessBase"]
[SourceQuality "1"]
[TimeControl "180+2"]

{[%evp 12,63,41,15,41,18,37,30,27,35,41,32,43,6,31,9,12,15,31,26,29,19,31,24,39,27,25,19,10,-12,-8,-15,-6,-14,-10,-29,0,-7,0,0,0,-23,-7,-12,0,0,9,0,0,0,0,0,0,0]} 1. e4 {[%emt 0:00:01]} e5 {[%emt 0:00:01]} 2. Nf3 {[%emt 0:00:01]} Nc6 {[%emt 0:00:01]} 3. Bc4 {[%emt 0:00:01]} Nf6 {[%emt 0:00:02]} 4. d3 {[%emt 0:00:01]} h6 {[%emt 0:00:01]} 5. O-O {[%emt 0:00:03]} Bc5 {[%emt 0:00:02]} 6. c3 {[%emt 0:00:01]} d6 {[%emt 0:00:00]} 7. Nbd2 {[%emt 0:00:07]} (7. b4 $5 Bb6 $8 8. a4 $11) 7... O-O {[%emt 0:00:05] C54: Giuoco Piano: 4 c3 Nf6, main lines with 5 d4 and 5 d3.} 8. Re1 {[%emt 0:00:04]} (8. b4 $5 Bb6 $8 9. Bb3 $11) 8... Bb6 $1 {[%emt 0:00:00][%mdl 4] now scores much better than the old 8...a5.} 9. b4 {[%emt 0:00:01]} Ne7 {[%emt 0:00:09] White has an edge.} 10. Bb3 {[%emt 0:00:02]} a6 {[%emt 0:00:04]} 11. a4 {[%emt 0:00:06]} Ng6 {[%emt 0:00:01]} 12. Nf1 {[%emt 0:00:26]} Be6 {[%emt 0:00:05]} 13. Be3 {[%emt 0:00:04]} Bxe3 {[%emt 0:00:10]} 14. Nxe3 $146 {[%emt 0:00:02]} ({Predecessor:} 14. fxe3 d5 15. exd5 Nxd5 16. Bxd5 Qxd5 17. d4 e4 18. N3d2 b5 19. Ng3 f5 20. Qc2 {1-0 Bhagyashree,P (1836)-Rebecca,J (1486) IND-ch U15 Girls 2018 (4)}) 14... Re8 {[%emt 0:00:01]} 15. Bxe6 {[%emt 0:00:10]} Rxe6 {[%emt 0:00:02]} 16. Qb3 {[%emt 0:00:03]} Qd7 {[%emt 0:00:12]} 17. g3 {[%emt 0:00:13]} Rd8 {[%emt 0:00:01][%cal Ba8d8,Bd8d5,Bd5c5][%mdl 32]} 18. b5 {[%emt 0:00:10]} d5 {[%emt 0:00:21]} 19. exd5 {[%emt 0:01:02]} Nxd5 {[%emt 0:00:01]} 20. Nxd5 {[%emt 0:00:01]} Qxd5 {[%emt 0:00:02]} 21. Qxd5 {[%emt 0:00:02]} Rxd5 {[%emt 0:00:01]} 22. bxa6 {[%emt 0:00:01]} Rxa6 {[%emt 0:00:13]} 23. d4 {[%emt 0:00:01][%cal Rd4e5]} exd4 {[%emt 0:00:05]} 24. Nxd4 {[%emt 0:00:01]} Rc5 {[%emt 0:00:07]} 25. Re3 {[%emt 0:00:26]} Ne5 {[%emt 0:00:09]} 26. Kg2 {[%emt 0:00:03]} (26. Nb3 $5 Rd5 $8 27. Nd4 $11) 26... g6 {[%emt 0:00:07]} 27. Rae1 {[%emt 0:00:05] The position is equal.} Nc6 {[%emt 0:00:08]} 28. Nb5 {[%emt 0:00:04]} Na7 {[%emt 0:00:07]} 29. Nd4 {[%emt 0:00:08]} Nc6 {[%emt 0:00:05]} (29... Rxa4 30. Rf3 Nc6 31. Nxc6 bxc6 (31... Rxc6 32. Re7 $11) 32. Re7) 30. Nb5 {[%emt 0:00:01]} Na7 {[%emt 0:00:55]} 31. Nd4 {[%emt 0:00:02]} Nc6 {[%emt 0:00:14]} ({Stronger than} 31... Rxa4 32. Re8+ Kg7 33. R1e7 $16) 32. Nb5 {[%emt 0:00:05] Weighted Error Value: White=0.10 (very precise) /Black=0.09 (flawless)   Inaccurate:     	White=1     	Black=1      OK:         	White=9     	Black=6      Best:        	White=1     	---} 1/2-1/2

[Event "American Cup Open Champions 2025"]
[Site "Saint Louis"]
[Date "2025.03.16"]
[Round "1.6"]
[White "Nakamura, Hikaru"]
[Black "Mishra, Abhimanyu"]
[Result "1-0"]
[Annotator "TA"]
[ECO "A14"]
[WhiteElo "2802"]
[BlackElo "2600"]
[PlyCount "99"]
[EventDate "2025.03.02"]
[EventType "k.o."]
[EventCountry "USA"]
[SourceTitle "playchess.com"]
[Source "ChessBase"]
[SourceQuality "1"]
[TimeControl "180+2"]

{[%evp 26,99,0,0,0,0,10,0,0,0,0,0,0,-10,0,0,0,0,0,0,0,-1,0,-6,0,-14,0,0,0,0,0,0,247,241,249,188,233,258,212,31,247,214,412,430,425,382,375,366,499,394,342,264,274,268,269,222,331,214,196,175,409,406,364,379,307,200,160,13,115,86,29977,29978,29979,29979,29977,29973]} 1. Nf3 {[%emt 0:00:01]} Nf6 {[%emt 0:00:01]} 2. g3 {[%emt 0:00:01]} d5 {[%emt 0:00:01]} 3. Bg2 {[%emt 0:00:01]} e6 {[%emt 0:00:04]} 4. O-O {[%emt 0:00:02]} Be7 {[%emt 0:00:01]} 5. b3 O-O {[%emt 0:00:02]} 6. Bb2 c5 {[%emt 0:00:01]} 7. e3 {[%emt 0:00:02]} Nc6 {[%emt 0:00:01]} 8. Qe2 {[%emt 0:00:00]} b6 {[%emt 0:00:09]} 9. c4 {[%emt 0:00:02]} Bb7 {[%emt 0:00:01]} 10. Rd1 {[%emt 0:00:02]} dxc4 {[%emt 0:00:47]} 11. bxc4 {[%emt 0:00:02]} Qc7 {[%emt 0:00:01]} 12. d3 {[%emt 0:00:01]} Rfd8 {[%emt 0:00:01]} 13. Nc3 {[%emt 0:00:03]} a6 {[%emt 0:00:01]} 14. Rab1 {[%emt 0:00:02]} Rab8 {[%emt 0:00:02] A14: English Opening: 1...e6 with b3 by White.} 15. Ne1 {[%emt 0:00:02]} Nb4 $146 {[%emt 0:00:08]} (15... Na5 16. Ba1 Bxg2 17. Nxg2 Qd7 18. g4 b5 19. g5 Ne8 20. cxb5 axb5 21. Ne4 Qc6 22. Qg4 {0-1 Harsha,B (2608)-Vlachos,A (2446) Paris Rapid op 2023 (3)}) 16. a3 {[%emt 0:00:24]} Bxg2 {[%emt 0:00:03] The position is equal.} 17. Nxg2 {[%emt 0:00:03]} Nc6 {[%emt 0:00:01]} 18. Ba1 {[%emt 0:00:00]} Rb7 {[%emt 0:00:09]} 19. f4 {[%emt 0:00:04]} Rdb8 {[%emt 0:00:03]} 20. a4 {[%emt 0:00:00]} Nb4 {[%emt 0:00:05]} 21. g4 {[%emt 0:00:02]} Qc6 {[%emt 0:00:07]} 22. g5 {[%emt 0:00:03]} Ne8 {[%emt 0:00:01]} 23. Rd2 {[%emt 0:00:15]} Rd8 {[%emt 0:00:04]} 24. Ne1 {[%emt 0:00:02]} Rbd7 {[%emt 0:00:18]} 25. Rbd1 {[%emt 0:00:02]} Nd6 {[%emt 0:00:20]} 26. Nf3 $1 {[%emt 0:00:10]} f6 {[%emt 0:00:10] Prevents Ne5} 27. e4 {[%emt 0:00:19][%cal Be3e4,Be4e5][%mdl 32] Strongly threatening gxf6.} Nf7 {[%emt 0:00:32]} 28. h4 {[%emt 0:00:03]} Rd6 $2 {[%emt 0:00:06]} (28... fxg5 $11 {and Black has nothing to worry.} 29. hxg5 Rd4) 29. gxf6 $1 $18 {[%emt 0:00:14]} gxf6 {[%emt 0:00:01]} 30. Kh2 {[%emt 0:00:02]} Kf8 {[%emt 0:00:18] [#]} 31. e5 $1 {[%emt 0:00:14]} R6d7 {[%emt 0:00:08] [#]} 32. d4 $2 {[%emt 0:00:10]} (32. Ne4 $1 $18 f5 33. Nf6) 32... f5 {[%emt 0:00:09]} (32... cxd4 $1 $14 33. Nxd4 Rxd4 34. Rxd4 Rxd4 35. Rxd4 f5) 33. d5 $1 {[%emt 0:00:11]} Qc8 {[%emt 0:00:05]} (33... exd5 34. e6 d4) 34. d6 {[%emt 0:00:04]} (34. dxe6 Rxd2 35. Rxd2 Qxe6 36. Rxd8+ Nxd8 $11) 34... Nh6 {[%emt 0:00:01]} 35. dxe7+ {[%emt 0:00:02]} Kxe7 {[%emt 0:00:01] [#]} 36. Rd6 $1 {[%emt 0:00:11]} Nf7 {[%emt 0:00:02] Dodges Ng5} (36... Rxd6 37. exd6+) 37. Rxd7+ {[%emt 0:00:25]} ({Less strong is} 37. Rxb6 Rb7 $18) 37... Rxd7 {[%emt 0:00:01]} 38. Bb2 {[%emt 0:00:10]} Nh6 {[%emt 0:00:02]} 39. Bc1 {[%emt 0:00:17]} Ng4+ {[%emt 0:00:02]} 40. Kg1 {[%emt 0:00:04]} h6 {[%emt 0:00:07]} (40... Qd8 {was worth a try.} 41. Rxd7+ Qxd7) 41. Rxd7+ {[%emt 0:00:10]} Qxd7 {[%emt 0:00:01]} 42. Qd2 {[%emt 0:00:02]} Nd3 $2 {[%emt 0:00:01] [#]} (42... Qd3) 43. Nd5+ $1 {[%emt 0:00:03][%mdl 512]} exd5 {[%emt 0:00:02]} 44. Qxd3 {[%emt 0:00:01]} dxc4 {[%emt 0:00:02]} 45. Qxd7+ {[%emt 0:00:05]} Kxd7 {[%emt 0:00:01]} 46. Ba3 {[%emt 0:00:01]} (46. Kf1 $16) 46... Ne3 {[%emt 0:00:02]} (46... Kc6 $1 $11) 47. a5 {[%emt 0:00:03][%cal Ba4a5,Ba5b6,Bb6b7][%mdl 32]} Nc2 $2 {[%emt 0:00:03][%mdl 8192] [#]} (47... bxa5 $16 48. Bxc5 Nd5) 48. axb6 $1 {[%emt 0:00:06] White mates.} Nxa3 {[%emt 0:00:04] [#]} (48... c3 49. e6+) 49. e6+ $1 {[%emt 0:00:02][%mdl 512]} Kd6 {[%emt 0:00:03]} (49... Kc6 50. e7) 50. b7 {[%emt 0:00:02] Weighted Error Value: White=0.35/Black=0.63  Loses game:     	---       	Black=3      Missed win:     	White=1     	---        Mistake:       	White=1     	Black=4      Inaccurate:     	White=2     	Black=1      OK:         	White=13    	Black=10     Best:        	White=1     	Black=1      Strong:       	White=4     	---        Brilliant:      	White=1     	---} 1-0